fUST/lending_fUST_20250206
["ID","MTS","AMOUNT","RATE_DAILY","PERIOD"]
[351849672,1738819839029,-500.0,0.00013698,2]
[351849674,1738819839039,-500.0,0.00013698,2]
[351849676,1738819839048,-500.0,0.00013698,2]
[351849678,1738819839057,-358.65917763,0.00013698,2]
[351849680,1738819839067,-500.0,0.00013698,2]
[351849682,1738819839076,-500.0,0.00013698,2]
[351849684,1738819839086,-500.0,0.00013698,2]
[351849686,1738819839095,-500.0,0.00013698,2]
[351849688,1738819839104,-500.0,0.00013698,2]
[351849690,1738819839114,-500.0,0.00013698,2]
[351849692,1738819839127,-502.36304305,0.00013698,2]
[351849694,1738819839136,-503.75467897,0.00013698,2]
[351849696,1738819839146,-539.18,0.00013698,2]
[351849698,1738819839156,-500.0,0.00013698,2]
[351849700,1738819839167,-500.0,0.00013698,2]
[351849703,1738819839177,-500.0,0.00013698,2]
[351849705,1738819839186,-500.0,0.00013698,2]
[351849707,1738819839197,-652.94,0.00013698,2]
[351849709,1738819839207,-526.62461133,0.00013698,2]
[351849711,1738819839217,-500.0,0.00013698,2]
[351849713,1738819839226,-500.0,0.00013698,2]
[351849715,1738819839236,-500.0,0.00013698,2]
[351849717,1738819839245,-500.0,0.00013698,2]
[351849719,1738819839255,-500.0,0.00013698,2]
[351849721,1738819839264,-514.63598522,0.00013698,2]
[351849723,1738819839273,-500.0,0.00013698,2]
[351849725,1738819839282,-500.0,0.00013698,2]
[351849727,1738819839292,-500.0,0.00013698,2]
[351849729,1738819839301,-500.0,0.00013698,2]
[351849731,1738819839311,-500.0,0.00013698,2]
[351849733,1738819839320,-500.0,0.00013698,2]
[351849735,1738819839329,-500.0,0.00013698,2]
[351849737,1738819839338,-500.0,0.00013698,2]
[351849739,1738819839348,-500.0,0.00013698,2]
[351849741,1738819839357,-500.0,0.00013698,2]
[351849743,1738819839366,-509.6756608,0.00013698,2]
[351849745,1738819839375,-500.22,0.00013698,2]
[351849747,1738819839385,-500.0,0.00013698,2]
[351849749,1738819839394,-496.27072835,0.00013698,2]
[351849751,1738819839404,-500.0,0.00013698,2]
[351849753,1738819839415,-500.0,0.00013698,2]
[351849755,1738819839424,-500.0,0.00013698,2]
[351849757,1738819839432,-500.0,0.00013698,2]
[351849759,1738819839442,-500.0,0.00013698,2]
[351849761,1738819839451,-500.83037888,0.00013698,2]
[351849763,1738819839460,-502.8092109,0.00013698,2]
[351849765,1738819839469,-500.0,0.00013698,2]
[351849767,1738819839478,-500.0,0.00013698,2]
[351849769,1738819839488,-500.0,0.00013698,2]
[351849771,1738819839497,-1191.96,0.00013698,2]
[351849773,1738819839505,-505.27074711,0.00013698,2]
[351849775,1738819839515,-218.52653175,0.00013698,2]
[351849777,1738819839524,-500.0,0.00013698,2]
[351849779,1738819839533,-500.0,0.00013698,2]
[351849781,1738819839543,-500.0,0.00013698,2]
[351849783,1738819839552,-613.09,0.00013698,2]
[351849785,1738819839561,-500.0,0.00013698,2]
[351849787,1738819839570,-500.0,0.00013698,2]
[351849789,1738819839580,-500.0,0.00013698,2]
[351849791,1738819839589,-500.0,0.00013698,2]
[351849793,1738819839598,-500.0,0.00013698,2]
[351849795,1738819839607,-500.0,0.00013698,2]
[351849797,1738819839617,-565.44,0.00013698,2]
[351849799,1738819839627,-500.0,0.00013698,2]
[351849800,1738819839635,-500.0,0.00013698,2]
[351849803,1738819839644,-403.47630691,0.00013698,2]
[351849805,1738819839654,-680.05,0.00013698,2]
[351849806,1738819839663,-500.0,0.00013698,2]
[351849808,1738819839672,-503.7039609,0.00013698,2]
[351849810,1738819839681,-500.0,0.00013698,2]
[351849812,1738819839691,-500.0,0.00013698,2]
[351849815,1738819839703,-500.0,0.00013698,2]
[351849817,1738819839712,-504.93192374,0.00013698,2]
[351849819,1738819839721,-500.0,0.00013698,2]
[351849821,1738819839730,-500.0,0.00013698,2]
[351849822,1738819839739,-500.0,0.00013698,2]
[351849825,1738819839750,-290.67870584,0.00013698,2]
[351849826,1738819839759,-500.0,0.00013698,2]
[351849828,1738819839768,-879.02,0.00013698,2]
[351849830,1738819839778,-500.0,0.00013698,2]
[351849832,1738819839787,-500.0,0.00013698,2]
[351849835,1738819839796,-500.0,0.00013698,2]
[351849837,1738819839805,-500.0,0.00013698,2]
[351849839,1738819839814,-500.0,0.00013698,2]
[351849840,1738819839823,-500.0,0.00013698,2]
[351849842,1738819839833,-500.0,0.00013698,2]
[351849845,1738819839842,-500.0,0.00013698,2]
[351849846,1738819839852,-503.19745152,0.00013698,2]
[351849848,1738819839862,-500.0,0.00013698,2]
[351849850,1738819839871,-507.12839574,0.00013698,2]
[351849853,1738819839880,-1229.41,0.00013698,2]
[351849854,1738819839889,-516.76355915,0.00013698,2]
[351849856,1738819839898,-500.0,0.00013698,2]
[351849859,1738819839908,-500.0,0.00013698,2]
[351849860,1738819839917,-500.0,0.00013698,2]
[351849862,1738819839926,-500.0,0.00013698,2]
[351849864,1738819839935,-573.19,0.00013698,2]
[351849866,1738819839944,-1004.52,0.00013698,2]
[351849869,1738819839953,-500.0,0.00013698,2]
[351849871,1738819839963,-695.86,0.00013698,2]
[351849872,1738819839972,-536.87400511,0.00013698,2]
[351849874,1738819839981,-633.75,0.00013698,2]
[351849877,1738819839991,-500.0,0.00013698,2]
[351849878,1738819840001,-500.0,0.00013698,2]
[351849880,1738819840010,-501.75,0.00013698,2]
[351849882,1738819840019,-500.0,0.00013698,2]
[351849885,1738819840029,-503.24126649,0.00013698,2]
[351849887,1738819840038,-514.89562728,0.00013698,2]
[351849889,1738819840047,-500.0,0.00013698,2]
[351849890,1738819840056,-500.0,0.00013698,2]
[351849893,1738819840066,-500.0,0.00013698,2]
[351849894,1738819840075,-692.89,0.00013698,2]
[351849897,1738819840084,-500.0,0.00013698,2]
[351849899,1738819840093,-500.0,0.00013698,2]
[351849901,1738819840103,-500.0,0.00013698,2]
[351849903,1738819840113,-500.0,0.00013698,2]
[351849905,1738819840125,-156.47322616,0.00013698,2]
[351849906,1738819840134,-501.1831696,0.00013698,2]
[351849909,1738819840144,-500.0,0.00013698,2]
[351849911,1738819840155,-500.0,0.00013698,2]
[351849912,1738819840164,-500.0,0.00013698,2]
[351849914,1738819840173,-554.33101471,0.00013698,2]
[351849916,1738819840182,-599.1,0.00013698,2]
[351849918,1738819840191,-678.78,0.00013698,2]
[351849919,1738819840201,-1249.75,0.00013698,2]
[351849920,1738819840210,-500.0,0.00013698,2]
[351849921,1738819840219,-513.37359125,0.00013698,2]
[351849922,1738819840228,-500.0,0.00013698,2]
[351849923,1738819840237,-500.0,0.00013698,2]
[351849924,1738819840246,-500.0,0.00013698,2]
[351849925,1738819840255,-500.0,0.00013698,2]
[351849926,1738819840264,-828.35,0.00013698,2]
[351849927,1738819840273,-500.0,0.00013698,2]
[351849929,1738819840282,-500.0,0.00013698,2]
[351849931,1738819840292,-271.57866903,0.00013698,2]
[351849933,1738819840301,-2194.31,0.00013698,2]
[351849935,1738819840310,-500.0,0.00013698,2]
[351849937,1738819840319,-500.0,0.00013698,2]
[351849939,1738819840329,-500.0,0.00013698,2]
[351849941,1738819840338,-500.0,0.00013698,2]
[351849943,1738819840347,-944.8,0.00013698,2]
[351849945,1738819840356,-500.0,0.00013698,2]
[351849947,1738819840366,-500.0,0.00013698,2]
[351849949,1738819840375,-2253.06,0.00013698,2]
[351849951,1738819840384,-500.0,0.00013698,2]
[351849953,1738819840393,-402.81729261,0.00013698,2]
[351849955,1738819840403,-535.58859981,0.00013698,2]
[351849957,1738819840412,-501.00583441,0.00013698,2]
[351849959,1738819840421,-506.70138737,0.00013698,2]
[351849961,1738819840431,-500.0,0.00013698,2]
[351849963,1738819840440,-824.71,0.00013698,2]
[351849965,1738819840450,-500.0,0.00013698,2]
[351849968,1738819840460,-500.0,0.00013698,2]
[351849970,1738819840469,-500.0,0.00013698,2]
[351849972,1738819840479,-500.0,0.00013698,2]
[351849974,1738819840488,-500.0,0.00013698,2]
[351849976,1738819840497,-500.0,0.00013698,2]
[351849977,1738819840507,-500.0,0.00013698,2]
[351849979,1738819840516,-1135.26,0.00013698,2]
[351849981,1738819840526,-500.0,0.00013698,2]
[351849984,1738819840536,-1501.41,0.00013698,2]
[351849986,1738819840546,-500.0,0.00013698,2]
[351849988,1738819840556,-500.0,0.00013698,2]
[351849990,1738819840565,-500.0,0.00013698,2]
[351849991,1738819840574,-1131.47,0.00013698,2]
[351849994,1738819840584,-500.0,0.00013698,2]
[351849996,1738819840593,-500.0,0.00013698,2]
[351849998,1738819840602,-500.0,0.00013698,2]
[351849999,1738819840611,-500.0,0.00013698,2]
[351850001,1738819840621,-501.34361196,0.00013698,2]
[351850003,1738819840631,-500.0,0.00013698,2]
[351850005,1738819840640,-500.0,0.00013698,2]
[351850007,1738819840649,-665.53,0.00013698,2]
[351850010,1738819840659,-500.0,0.00013698,2]
[351850012,1738819840669,-506.32281639,0.00013698,2]
[351850013,1738819840678,-1044.45,0.00013698,2]
[351850016,1738819840687,-682.2,0.00013698,2]
[351850017,1738819840697,-500.0,0.00013698,2]
[351850019,1738819840706,-500.0,0.00013698,2]
[351850021,1738819840715,-500.0,0.00013698,2]
[351850023,1738819840724,-500.0,0.00013698,2]
[351850025,1738819840733,-500.0,0.00013698,2]
[351850027,1738819840742,-514.78,0.00013698,2]
[351850029,1738819840753,-500.0,0.00013698,2]
[351850031,1738819840762,-500.0,0.00013698,2]
[351850033,1738819840771,-500.93634332,0.00013698,2]
[351850035,1738819840780,-500.0,0.00013698,2]
[351850037,1738819840790,-500.0,0.00013698,2]
[351850039,1738819840799,-500.0,0.00013698,2]
[351850041,1738819840808,-500.0,0.00013698,2]
[351850043,1738819840817,-500.0,0.00013698,2]
[351850045,1738819840826,-500.0,0.00013698,2]
[351850047,1738819840835,-500.0,0.00013698,2]
[351850049,1738819840844,-500.0,0.00013698,2]
[351850051,1738819840854,-974.88,0.00013698,2]
[351850053,1738819840862,-500.0,0.00013698,2]
[351850055,1738819840871,-1094.79,0.00013698,2]
[351850057,1738819840880,-505.28303151,0.00013698,2]
[351850059,1738819840889,-501.36869631,0.00013698,2]
[351850061,1738819840898,-500.52781619,0.00013698,2]
[351850063,1738819840907,-501.13989207,0.00013698,2]
[351850065,1738819840917,-500.36483708,0.00013698,2]
[351850067,1738819840925,-3258.19,0.00013698,2]
[351850069,1738819840934,-500.0,0.00013698,2]
[351850071,1738819840944,-500.0,0.00013698,2]
[351850073,1738819840953,-500.0,0.00013698,2]
[351850075,1738819840962,-500.0,0.00013698,2]
[351850077,1738819840972,-500.0,0.00013698,2]
[351850079,1738819840981,-500.0,0.00013698,2]
[351850081,1738819840990,-500.0,0.00013698,2]
[351850083,1738819840999,-518.40883671,0.00013698,2]
[351850085,1738819841008,-568.98,0.00013698,2]
[351850087,1738819841018,-500.0,0.00013698,2]
[351850089,1738819841027,-512.18,0.00013698,2]
[351850091,1738819841036,-500.0,0.00013698,2]
[351850093,1738819841046,-500.0,0.00013698,2]
[351850095,1738819841055,-500.0,0.00013698,2]
[351850097,1738819841064,-500.0,0.00013698,2]
[351850099,1738819841073,-592.45,0.00013698,2]
[351850101,1738819841082,-500.0,0.00013698,2]
[351850103,1738819841092,-500.0,0.00013698,2]
[351850105,1738819841101,-500.0,0.00013698,2]
[351850106,1738819841117,-500.0,0.00013698,2]
[351850108,1738819841133,-500.0,0.00013698,2]
[351850111,1738819841143,-746.11,0.00013698,2]
[351850113,1738819841153,-501.10644128,0.00013698,2]
[351850115,1738819841162,-500.0,0.00013698,2]
[351850131,1738819841172,-500.0,0.00013698,2]
[351850133,1738819841325,-500.0,0.00013698,2]
[351850135,1738819841334,-500.0,0.00013698,2]
[351850137,1738819841343,-500.0,0.00013698,2]
[351850140,1738819841353,-500.0,0.00013698,2]
[351850142,1738819841363,-500.0,0.00013698,2]
[351850144,1738819841374,-596.36243381,0.00013698,2]
[351850146,1738819841383,-500.0,0.00013698,2]
[351850148,1738819841392,-367.57129487,0.00013698,2]
[351850150,1738819841402,-500.0,0.00013698,2]
[351850152,1738819841411,-500.0,0.00013698,2]
[351850154,1738819841420,-1332.51,0.00013698,2]
[351850156,1738819841429,-500.0,0.00013698,2]
[351850158,1738819841438,-500.0,0.00013698,2]
[351850160,1738819841448,-1092.16,0.00013698,2]
[351850162,1738819841458,-500.0,0.00013698,2]
[351850164,1738819841466,-489.65097016,0.00013698,2]
[351850166,1738819841476,-500.0,0.00013698,2]
[351850168,1738819841485,-847.8,0.00013698,2]
[351850170,1738819841494,-502.92189424,0.00013698,2]
[351850172,1738819841503,-500.0,0.00013698,2]
[351850174,1738819841512,-610.69,0.00013698,2]
[351850176,1738819841521,-500.0,0.00013698,2]
[351850178,1738819841530,-884.31,0.00013698,2]
[351850180,1738819841540,-500.0,0.00013698,2]
[351850182,1738819841551,-1082.83,0.00013698,2]
[351850184,1738819841560,-1658.2,0.00013698,2]
[351850186,1738819841569,-620.65,0.00013698,2]
[351850188,1738819841578,-500.0,0.00013698,2]
[351850190,1738819841587,-500.0,0.00013698,2]
[351850192,1738819841597,-502.0144792,0.00013698,2]
[351850194,1738819841607,-1424.78,0.00013698,2]
[351850196,1738819841617,-500.0,0.00013698,2]
[351850198,1738819841626,-500.0,0.00013698,2]
[351850200,1738819841635,-500.0,0.00013698,2]
[351850202,1738819841644,-757.9,0.00013698,2]
[351850204,1738819841653,-500.0,0.00013698,2]
[351850206,1738819841662,-500.0,0.00013698,2]
[351850208,1738819841672,-506.7419313,0.00013698,2]
[351850210,1738819841681,-500.0,0.00013698,2]
[351850212,1738819841690,-504.88703297,0.00013698,2]
[351850214,1738819841700,-500.0,0.00013698,2]
[351850216,1738819841709,-507.17438468,0.00013698,2]
[351850218,1738819841718,-500.0,0.00013698,2]
[351850220,1738819841728,-865.92,0.00013698,2]
[351850222,1738819841737,-500.0,0.00013698,2]
[351850224,1738819841746,-506.03,0.00013698,2]
[351850226,1738819841756,-500.0,0.00013698,2]
[351850228,1738819841765,-500.0,0.00013698,2]
[351850230,1738819841775,-500.0,0.00013698,2]
[351850232,1738819841784,-500.0,0.00013698,2]
[351850234,1738819841793,-500.0,0.00013698,2]
[351850236,1738819841802,-500.0,0.00013698,2]
[351850238,1738819841812,-500.0,0.00013698,2]
[351850240,1738819841821,-517.42,0.00013698,2]
[351850242,1738819841829,-500.0,0.00013698,2]
[351850244,1738819841839,-982.5,0.00013698,2]
[351850246,1738819841848,-1192.83,0.00013698,2]
[351850248,1738819841858,-500.0,0.00013698,2]
[351850250,1738819841868,-333.56975195,0.00013698,2]
[351850252,1738819841879,-509.55,0.00013698,2]
[351850254,1738819841889,-500.0,0.00013698,2]
[351850257,1738819841899,-523.78,0.00013698,2]
[351850259,1738819841908,-720.5,0.00013698,2]
[351850261,1738819841917,-500.0,0.00013698,2]
[351850263,1738819841926,-500.0,0.00013698,2]
[351850265,1738819841935,-500.0,0.00013698,2]
[351850267,1738819841944,-852.56,0.00013698,2]
[351850268,1738819841953,-502.46437832,0.00013698,2]
[351850271,1738819841963,-500.0,0.00013698,2]
[351850272,1738819841972,-512.07,0.00013698,2]
[351850274,1738819841981,-795.23,0.00013698,2]
[351850276,1738819841990,-500.0,0.00013698,2]
[351850279,1738819842000,-620.48,0.00013698,2]
[351850281,1738819842010,-500.0,0.00013698,2]
[351850283,1738819842019,-500.0,0.00013698,2]
[351850285,1738819842028,-500.0,0.00013698,2]
[351850287,1738819842037,-500.0,0.00013698,2]
[351850289,1738819842046,-500.0,0.00013698,2]
[351850291,1738819842055,-500.0,0.00013698,2]
[351850293,1738819842064,-500.0,0.00013698,2]
[351850295,1738819842073,-514.2,0.00013698,2]
[351850296,1738819842083,-500.0,0.00013698,2]
[351850298,1738819842092,-679.6,0.00013698,2]
[351850300,1738819842101,-2244.39,0.00013698,2]
[351850303,1738819842111,-644.74,0.00013698,2]
[351850305,1738819842123,-500.0,0.00013698,2]
[351850307,1738819842133,-504.34864836,0.00013698,2]
[351850309,1738819842142,-2397.78,0.00013698,2]
[351850311,1738819842152,-500.0,0.00013698,2]
[351850312,1738819842163,-830.71,0.00013698,2]
[351850314,1738819842172,-706.86,0.00013698,2]
[351850317,1738819842181,-500.0,0.00013698,2]
[351850319,1738819842191,-536.97,0.00013698,2]
[351850321,1738819842201,-502.65189866,0.00013698,2]
[351850323,1738819842211,-501.6280933,0.00013698,2]
[351850325,1738819842220,-500.0,0.00013698,2]
[351850327,1738819842229,-3444.25,0.00013698,2]
[351850329,1738819842238,-500.0,0.00013698,2]
[351850330,1738819842247,-2230.94,0.00013698,2]
[351850332,1738819842256,-500.0,0.00013698,2]
[351850335,1738819842266,-500.0,0.00013698,2]
[351850336,1738819842275,-500.0,0.00013698,2]
[351850339,1738819842285,-500.0,0.00013698,2]
[351850341,1738819842295,-500.0,0.00013698,2]
[351850343,1738819842304,-397.4581511,0.00013698,2]
[351850345,1738819842313,-500.0,0.00013698,2]
[351850347,1738819842322,-500.0,0.00013698,2]
[351850349,1738819842331,-500.0,0.00013698,2]
[351850351,1738819842340,-652.16,0.00013698,2]
[351850352,1738819842349,-466.71739335,0.00013698,2]
[351850353,1738819842359,-921.93544924,0.00013698,2]
[351850354,1738819842367,-500.0,0.00013698,2]
[351850355,1738819842377,-500.0,0.00013698,2]
[351850356,1738819842386,-252.04590377,0.00013698,2]
[351850432,1738819842994,-700.71409623,0.00013698,2]
[351850435,1738819843004,-500.0,0.00013698,2]
[351850437,1738819843013,-508.63416236,0.00013698,2]
[351850439,1738819843023,-502.31016563,0.00013698,2]
[351850441,1738819843033,-500.0,0.00013698,2]
[351850443,1738819843042,-500.0,0.00013698,2]
[351850445,1738819843052,-633.08,0.00013698,2]
[351850447,1738819843061,-500.0,0.00013698,2]
[351850448,1738819843070,-500.0,0.00013698,2]
[351850451,1738819843079,-500.0,0.00013698,2]
[351850453,1738819843088,-500.0,0.00013698,2]
[351850455,1738819843098,-506.4224548,0.00013698,2]
[351850457,1738819843107,-500.0,0.00013698,2]
[351850458,1738819843117,-500.0,0.00013698,2]
[351850461,1738819843129,-500.0,0.00013698,2]
[351850463,1738819843138,-684.96,0.00013698,2]
[351850465,1738819843147,-603.69,0.00013698,2]
[351850467,1738819843156,-501.11916785,0.00013698,2]
[351850468,1738819843166,-500.0,0.00013698,2]
[351850470,1738819843175,-500.0,0.00013698,2]
[351850472,1738819843184,-186.44344962,0.00013698,2]
[351850474,1738819843193,-504.64048291,0.00013698,2]
[351850476,1738819843203,-12192.55,0.00013698,2]
[351850478,1738819843212,-975.77,0.00013698,2]
[351850480,1738819843221,-500.0,0.00013698,2]
[351850483,1738819843230,-7148.25,0.00013698,2]
[351850485,1738819843239,-503.26762915,0.00013698,2]
[351850488,1738819843248,-503.75730287,0.00013698,2]
[351850490,1738819843257,-500.0,0.00013698,2]
[351850492,1738819843266,-500.0,0.00013698,2]
[351850494,1738819843275,-500.0,0.00013698,2]
[351850496,1738819843284,-500.0,0.00013698,2]
[351850498,1738819843294,-1152.5,0.00013698,2]
[351850500,1738819843303,-502.05205014,0.00013698,2]
[351850503,1738819843313,-500.0,0.00013698,2]
[351850506,1738819843323,-300.0,0.00013698,2]
[351850509,1738819843332,-500.0,0.00013698,2]
[351850512,1738819843342,-900.65,0.00013698,2]
[351850515,1738819843351,-554.31,0.00013698,2]
[351850518,1738819843363,-500.0,0.00013698,2]
[351850520,1738819843373,-1262.37,0.00013698,2]
[351850522,1738819843382,-508.36374656,0.00013698,2]
[351850524,1738819843392,-500.0,0.00013698,2]
[351850526,1738819843401,-2298.93,0.00013698,2]
[351850528,1738819843410,-4507.15,0.00013698,2]
[351850530,1738819843419,-718.85,0.00013698,2]
[351850532,1738819843428,-500.0,0.00013698,2]
[351850534,1738819843437,-535.46,0.00013698,2]
[351850536,1738819843446,-502.11845928,0.00013698,2]
[351850538,1738819843455,-500.0,0.00013698,2]
[351850540,1738819843465,-500.0,0.00013698,2]
[351850542,1738819843475,-151.0,0.00013698,2]
[351850544,1738819843484,-500.0,0.00013698,2]
[351850546,1738819843493,-500.0,0.00013698,2]
[351850548,1738819843503,-500.0,0.00013698,2]
[351850550,1738819843512,-1230.67,0.00013698,2]
[351850552,1738819843521,-500.0,0.00013698,2]
[351850555,1738819843531,-4355.39,0.00013698,2]
[351850557,1738819843540,-500.0,0.00013698,2]
[351850559,1738819843549,-500.0,0.00013698,2]
[351850561,1738819843558,-588.2,0.00013698,2]
[351850562,1738819843567,-500.0,0.00013698,2]
[351850565,1738819843577,-502.33325075,0.00013698,2]
[351850566,1738819843586,-151.0,0.00013698,2]
[351850569,1738819843595,-695.52,0.00013698,2]
[351850570,1738819843604,-2570.08,0.00013698,2]
[351850573,1738819843614,-500.0,0.00013698,2]
[351850575,1738819843624,-500.0,0.00013698,2]
[351850577,1738819843634,-2312.35,0.00013698,2]
[351850579,1738819843643,-500.47673277,0.00013698,2]
[351850580,1738819843652,-500.0,0.00013698,2]
[351850583,1738819843662,-151.0,0.00013698,2]
[351850585,1738819843671,-500.0,0.00013698,2]
[351850587,1738819843680,-500.0,0.00013698,2]
[351850588,1738819843689,-500.0,0.00013698,2]
[351850590,1738819843699,-500.0,0.00013698,2]
[351850592,1738819843708,-502.61000714,0.00013698,2]
[351850594,1738819843717,-1842.04,0.00013698,2]
[351850597,1738819843727,-500.0,0.00013698,2]
[351850599,1738819843737,-500.0,0.00013698,2]
[351850601,1738819843746,-637.21,0.00013698,2]
[351850602,1738819843755,-6263.62,0.00013698,2]
[351850604,1738819843765,-500.0,0.00013698,2]
[351850607,1738819843775,-500.0,0.00013698,2]
[351850608,1738819843784,-1286.12,0.00013698,2]
[351850610,1738819843793,-151.0,0.00013698,2]
[351850613,1738819843803,-500.0,0.00013698,2]
[351850614,1738819843812,-151.0,0.00013698,2]
[351850616,1738819843821,-151.0,0.00013698,2]
[351850618,1738819843831,-531.99,0.00013698,2]
[351850621,1738819843841,-151.0,0.00013698,2]
[351850623,1738819843851,-500.0,0.00013698,2]
[351850625,1738819843862,-500.0,0.00013698,2]
[351850627,1738819843873,-625.58,0.00013698,2]
[351850629,1738819843883,-151.0,0.00013698,2]
[351850631,1738819843892,-500.0,0.00013698,2]
[351850633,1738819843901,-500.0,0.00013698,2]
[351850635,1738819843911,-503.51116766,0.00013698,2]
[351850636,1738819843920,-500.0,0.00013698,2]
[351850638,1738819843929,-500.0,0.00013698,2]
[351850641,1738819843939,-865.24,0.00013698,2]
[351850643,1738819843948,-887.66,0.00013698,2]
[351850644,1738819843957,-500.0,0.00013698,2]
[351850646,1738819843966,-501.39598792,0.00013698,2]
[351850649,1738819843975,-500.0,0.00013698,2]
[351850650,1738819843984,-503.57287931,0.00013698,2]
[351850652,1738819843993,-2178.79,0.00013698,2]
[351850654,1738819844003,-500.0,0.00013698,2]
[351850657,1738819844012,-500.0,0.00013698,2]
[351850659,1738819844021,-30348.27,0.00013698,2]
[351850660,1738819844030,-632.51,0.00013698,2]
[351850663,1738819844039,-500.0,0.00013698,2]
[351850681,1738819844214,-501.38932267,0.00013698,2]
[351850683,1738819844224,-500.0,0.00013698,2]
[351850685,1738819844233,-508.00493297,0.00013698,2]
[351850687,1738819844243,-566.61,0.00013698,2]
[351850689,1738819844252,-539.83,0.00013698,2]
[351850691,1738819844261,-500.0,0.00013698,2]
[351850693,1738819844271,-500.0,0.00013698,2]
[351850695,1738819844281,-2031.8,0.00013698,2]
[351850697,1738819844291,-500.0,0.00013698,2]
[351850699,1738819844302,-500.0,0.00013698,2]
[351850702,1738819844313,-3602.37,0.00013698,2]
[351850704,1738819844323,-500.0,0.00013698,2]
[351850706,1738819844332,-500.0,0.00013698,2]
[351850707,1738819844342,-512.07323695,0.00013698,2]
[351850708,1738819844352,-500.0,0.00013698,2]
[351850709,1738819844361,-4370.53,0.00013698,2]
[351850710,1738819844370,-500.0,0.00013698,2]
[351850711,1738819844382,-2171.34,0.00013698,2]
[351850712,1738819844391,-500.0,0.00013698,2]
[351850713,1738819844400,-14377.70731353,0.00013698,2]
[351850714,1738819844415,-20125.9580255,0.00013698,2]
[351850745,1738819844693,-3000.0,0.00013698,2]
[351850750,1738819844736,-92.78780714,0.00013698,2]
[351850909,1738819846301,-37572.90537168,0.00013698,2]
[351850912,1738819846312,-500.0,0.00013698,2]
[351851414,1738820600855,3000.0,0.000192,120]
[351851415,1738820733143,-1936.0397479,0.00012694,2]
[351851416,1738820733168,-600.0,0.0001315,2]
[351851417,1738820733192,-4473.30178288,0.00013519,2]
[351851418,1738820733215,-165.44254084,0.00013598,2]
[351851419,1738820733238,-1014.87880788,0.00013647,8]
[351851420,1738820733261,-7438.69753278,0.00013652,2]
[351851421,1738820733284,-300.0,0.00013654,2]
[351851422,1738820733307,-152.0,0.00013695,2]
[351851423,1738820733331,-196.472,0.00013696,2]
[351851424,1738820733353,-350.2797012,0.00013696,2]
[351851425,1738820733375,-500.0,0.00013697,2]
[351851426,1738820733404,-500.0,0.00013697,2]
[351851427,1738820733429,-500.0,0.00013697,2]
[351851428,1738820733455,-500.0,0.00013697,2]
[351851429,1738820733481,-300.0,0.00013697,2]
[351851430,1738820733505,-427.65445853,0.00013697,2]
[351851431,1738820733530,-500.0,0.00013697,2]
[351851432,1738820733556,-500.0,0.00013697,2]
[351851433,1738820733580,-500.0,0.00013697,2]
[351851434,1738820733603,-500.0,0.00013697,2]